lending/lending_fUSD_20241229
["ID","MTS","AMOUNT","RATE_DAILY","PERIOD"]
[347003094,1735462232842,-500.0,0.00012799,2]
[347003095,1735462232851,-500.0,0.00012799,2]
[347003096,1735462232861,-500.0,0.00012799,2]
[347003097,1735462232870,-1952.07,0.00012799,2]
[347003098,1735462232880,-500.0,0.00012799,2]
[347003099,1735462232889,-500.0,0.00012799,2]
[347003100,1735462232898,-500.0,0.00012799,2]
[347003101,1735462232907,-500.0,0.00012799,2]
[347003102,1735462232917,-500.0,0.00012799,2]
[347003103,1735462232926,-500.0,0.00012799,2]
[347003104,1735462232935,-611.73305721,0.00012799,2]
[347003105,1735462232945,-500.0,0.00012799,2]
[347003106,1735462232955,-1413.82,0.00012799,2]
[347003107,1735462232968,-980.5,0.00012799,2]
[347003108,1735462232977,-611.93,0.00012799,2]
[347003109,1735462232988,-585.14,0.00012799,2]
[347003110,1735462232997,-662.13,0.00012799,2]
[347003111,1735462233008,-500.0,0.00012799,2]
[347003112,1735462233017,-951.01,0.00012799,2]
[347003113,1735462233026,-500.0,0.00012799,2]
[347003114,1735462233035,-500.0,0.00012799,2]
[347003115,1735462233046,-1009.72,0.00012799,2]
[347003116,1735462233056,-1088.69,0.00012799,2]
[347003117,1735462233065,-1032.27,0.00012799,2]
[347003118,1735462233075,-500.0,0.00012799,2]
[347003119,1735462233084,-535.16,0.00012799,2]
[347003120,1735462233094,-500.0,0.00012799,2]
[347003121,1735462233103,-500.0,0.00012799,2]
[347003122,1735462233113,-809.11,0.00012799,2]
[347003123,1735462233122,-2002.37,0.00012799,2]
[347003124,1735462233132,-500.0,0.00012799,2]
[347003125,1735462233142,-500.0,0.00012799,2]
[347003126,1735462233151,-500.0,0.00012799,2]
[347003127,1735462233161,-500.0,0.00012799,2]
[347003128,1735462233171,-500.0,0.00012799,2]
[347003129,1735462233180,-500.0,0.00012799,2]
[347003130,1735462233190,-500.0,0.00012799,2]
[347003131,1735462233199,-500.0,0.00012799,2]
[347003132,1735462233209,-500.0,0.00012799,2]
[347003133,1735462233218,-500.0,0.00012799,2]
[347003134,1735462233228,-500.0,0.00012799,2]
[347003135,1735462233237,-500.0,0.00012799,2]
[347003136,1735462233246,-1078.08,0.00012799,2]
[347003137,1735462233256,-659.16,0.00012799,2]
[347003138,1735462233265,-500.0,0.00012799,2]
[347003139,1735462233275,-500.0,0.00012799,2]
[347003140,1735462233284,-500.0,0.00012799,2]
[347003141,1735462233295,-500.0,0.00012799,2]
[347003142,1735462233304,-176.79087034,0.00012799,2]
[347003143,1735462233314,-541.91,0.00012799,2]
[347003144,1735462233323,-500.0,0.00012799,2]
[347003145,1735462233332,-500.0,0.00012799,2]
[347003146,1735462233342,-500.0,0.00012799,2]
[347003147,1735462233351,-752.06,0.00012799,2]
[347003148,1735462233360,-500.0,0.00012799,2]
[347003149,1735462233369,-579.51,0.00012799,2]
[347003150,1735462233379,-500.0,0.00012799,2]
[347003151,1735462233388,-500.0,0.00012799,2]
[347003152,1735462233397,-500.0,0.00012799,2]
[347003153,1735462233407,-500.0,0.00012799,2]
[347003154,1735462233417,-500.0,0.00012799,2]
[347003155,1735462233427,-500.0,0.00012799,2]
[347003156,1735462233437,-500.0,0.00012799,2]
[347003157,1735462233446,-500.0,0.00012799,2]
[347003158,1735462233456,-500.0,0.00012799,2]
[347003159,1735462233465,-513.83,0.00012799,2]
[347003160,1735462233475,-2962.06,0.00012799,2]
[347003161,1735462233485,-436.43036805,0.00012799,2]
[347003162,1735462233505,-63.56963195,0.00012799,2]
[347003163,1735462233515,-226.17649332,0.00012799,2]
[347003164,1735462233534,-739.43350668,0.00012799,2]
[347003165,1735462233544,-269.28822522,0.00012799,2]
[347003166,1735462233555,-230.71177478,0.00012799,2]
[347003167,1735462233565,-500.0,0.00012799,2]
[347003168,1735462233575,-500.0,0.00012799,2]
[347003169,1735462233585,-461.04958122,0.00012799,2]
[347003170,1735462233625,-42.83041878,0.00012799,2]
[347003171,1735462233635,-500.0,0.00012799,2]
[347003172,1735462233645,-500.0,0.00012799,2]
[347003173,1735462233655,-500.0,0.00012799,2]
[347003174,1735462233665,-500.0,0.00012799,2]
[347003175,1735462233674,-500.0,0.00012799,2]
[347003176,1735462233683,-500.0,0.00012799,2]
[347003177,1735462233693,-500.0,0.00012799,2]
[347003178,1735462233702,-583.07,0.00012799,2]
[347003179,1735462233712,-500.0,0.00012799,2]
[347003180,1735462233721,-500.0,0.00012799,2]
[347003181,1735462233731,-1255.43,0.00012799,2]
[347003182,1735462233740,-834.35,0.00012799,2]
[347003183,1735462233750,-500.0,0.00012799,2]
[347003184,1735462233759,-197.76331981,0.00012799,2]
[347003185,1735462233781,-420.94230073,0.00012799,2]
[347003186,1735462233790,-435.10026995,0.00012799,2]
[347003187,1735462233895,-64.89973005,0.00012799,2]
[347003188,1735462233905,-500.0,0.00012799,2]
[347003189,1735462233914,-146.57527,0.00012799,2]
[347003190,1735462233925,-353.42473,0.00012799,2]
[347003191,1735462233935,-500.0,0.00012799,2]
[347003192,1735462233944,-344.97527,0.00012799,2]
[347003193,1735462233955,-155.02473,0.00012799,2]
[347003194,1735462233967,-774.61961,0.00012799,2]
[347003195,1735462233996,-244.47039,0.00012799,2]
[347003196,1735462234006,-500.0,0.00012799,2]
[347003197,1735462234015,-500.0,0.00012799,2]
[347003198,1735462234025,-500.0,0.00012799,2]
[347003199,1735462234035,-1996.62,0.00012799,2]
[347003200,1735462234045,-500.0,0.00012799,2]
[347003201,1735462234055,-500.0,0.00012799,2]
[347003202,1735462234065,-749.96,0.00012799,2]
[347003203,1735462234075,-729.49,0.00012799,2]
[347003204,1735462234084,-500.0,0.00012799,2]
[347003205,1735462234094,-500.0,0.00012799,2]
[347003206,1735462234103,-500.0,0.00012799,2]
[347003207,1735462234113,-860.74217916,0.00012799,2]
[347003214,1735462237512,-150.0,0.00012757,2]
[347003216,1735462237521,-150.0,0.0001276,2]
[347003217,1735462237531,-150.0,0.00012786,2]
[347003218,1735462237540,-150.0,0.00012792,2]
[347003219,1735462237550,-53.67901261,0.00012798,2]
[347003220,1735462237563,-1224.26098739,0.00012798,2]
[347003221,1735462237573,-500.0,0.00012799,2]
[347003222,1735462237582,-500.0,0.00012799,2]
[347003223,1735462237593,-500.0,0.00012799,2]
[347003224,1735462237602,-500.0,0.00012799,2]
[347003225,1735462237611,-500.0,0.00012799,2]
[347003226,1735462237621,-512.54,0.00012799,2]
[347003227,1735462237631,-500.0,0.00012799,2]
[347003228,1735462237639,-500.0,0.00012799,2]
[347003229,1735462237648,-500.0,0.00012799,2]
[347003230,1735462237657,-500.0,0.00012799,2]
[347003231,1735462237666,-925.15,0.00012799,2]
[347003232,1735462237676,-500.0,0.00012799,2]
[347003233,1735462237685,-500.0,0.00012799,2]
[347003234,1735462237694,-500.0,0.00012799,2]
[347003235,1735462237703,-500.0,0.00012799,2]
[347003236,1735462237712,-1126.35,0.00012799,2]
[347003237,1735462237721,-500.0,0.00012799,2]
[347003238,1735462237730,-500.0,0.00012799,2]
[347003239,1735462237740,-1298.04,0.00012799,2]
[347003240,1735462237749,-500.0,0.00012799,2]
[347003241,1735462237758,-500.67,0.00012799,2]
[347003242,1735462237767,-500.0,0.00012799,2]
[347003243,1735462237777,-3217.95,0.00012799,2]
[347003244,1735462237786,-500.0,0.00012799,2]
[347003245,1735462237795,-2428.37539615,0.00012799,2]
[347003246,1735462237807,-1292.18460385,0.00012799,2]
[347003247,1735462237816,-500.0,0.00012799,2]
[347003248,1735462237825,-825.3,0.00012799,2]
[347003249,1735462237835,-500.0,0.00012799,2]
[347003250,1735462237844,-500.0,0.00012799,2]
[347003251,1735462237853,-601.64,0.00012799,2]
[347003252,1735462237863,-544.32705813,0.00012799,2]
[347003253,1735462237873,-1808.79,0.00012799,2]
[347003254,1735462237882,-500.0,0.00012799,2]
[347003255,1735462237892,-500.0,0.00012799,2]
[347003256,1735462237902,-500.0,0.00012799,2]
[347003257,1735462237913,-509.42,0.00012799,2]
[347003258,1735462237923,-500.0,0.00012799,2]
[347003259,1735462237933,-500.0,0.00012799,2]
[347003260,1735462237944,-500.0,0.00012799,2]
[347003261,1735462237954,-1962.04775136,0.00012799,2]
[347003262,1735462237988,-880.82102011,0.00012799,2]
[347003264,1735462238007,-423.53122853,0.00012799,2]
[347003266,1735462238016,-500.0,0.00012799,2]
[347003268,1735462238026,-148.95977147,0.00012799,2]
[347003270,1735462238039,-351.04022853,0.00012799,2]
[347003272,1735462238050,-1985.39,0.00012799,2]
[347003274,1735462238059,-500.0,0.00012799,2]
[347003276,1735462238068,-2151.51273147,0.00012799,2]
[347003278,1735462238106,-1477.05,0.00012799,2]
[347003283,1735462238140,-735.86726853,0.00012799,2]
[347003285,1735462238150,-565.28,0.00012799,2]
[347003287,1735462238160,-500.0,0.00012799,2]
[347003289,1735462238169,-1673.4593164,0.00012799,2]
[347003292,1735462238181,-2006.23632047,0.00012799,2]
[347003294,1735462238192,-446.67436313,0.00012799,2]
[347003296,1735462238201,-500.0,0.00012799,2]
[347003298,1735462238211,-500.0,0.00012799,2]
[347003300,1735462238219,-500.0,0.00012799,2]
[347003302,1735462238230,-500.0,0.00012799,2]
[347003304,1735462238239,-500.0,0.00012799,2]
[347003306,1735462238248,-6404.54,0.00012799,2]
[347003308,1735462238257,-500.0,0.00012799,2]
[347003310,1735462238266,-1129.74,0.00012799,2]
[347003312,1735462238275,-500.0,0.00012799,2]
[347003314,1735462238285,-500.0,0.00012799,2]
[347003316,1735462238294,-500.0,0.00012799,2]
[347003318,1735462238303,-500.0,0.00012799,2]
[347003320,1735462238313,-701.79,0.00012799,2]
[347003322,1735462238322,-486.5820605,0.00012799,2]
[347003440,1735462239493,-1000.0,0.00012763,2]
[347003441,1735462239503,-615.32,0.00012798,2]
[347003442,1735462239512,-13.4179395,0.00012799,2]
[347003443,1735462239521,-500.0,0.00012799,2]
[347003444,1735462239530,-500.0,0.00012799,2]
[347003446,1735462239539,-500.0,0.00012799,2]
[347003448,1735462239549,-1439.83,0.00012799,2]
[347003450,1735462239558,-3848.65,0.00012799,2]
[347003452,1735462239567,-500.0,0.00012799,2]
[347003454,1735462239577,-500.0,0.00012799,2]
[347003456,1735462239586,-1323.08,0.00012799,2]
[347003458,1735462239595,-500.0,0.00012799,2]
[347003460,1735462239605,-500.0,0.00012799,2]
[347003462,1735462239614,-1272.346935,0.00012799,2]
[347003464,1735462239624,-154.66829,0.00012799,2]
[347003466,1735462239633,-154.880727,0.00012799,2]
[347003468,1735462239643,-500.0,0.00012799,2]
[347003470,1735462239652,-500.0,0.00012799,2]
[347003472,1735462239663,-518.75,0.00012799,2]
[347003474,1735462239673,-500.0,0.00012799,2]
[347003475,1735462239682,-1223.22,0.00012799,2]
[347003478,1735462239691,-500.0,0.00012799,2]
[347003479,1735462239700,-1086.80498,0.00012799,2]
[347003482,1735462239710,-500.0,0.00012799,2]
[347003483,1735462239720,-500.0,0.00012799,2]
[347003485,1735462239729,-500.0,0.00012799,2]
[347003487,1735462239739,-500.0,0.00012799,2]
[347003490,1735462239748,-1667.19345504,0.00012799,2]
[347003492,1735462239760,-5265.04654496,0.00012799,2]
[347003494,1735462239770,-500.0,0.00012799,2]
[347003496,1735462239779,-502.94658447,0.00012799,2]
[347003498,1735462239788,-500.0,0.00012799,2]
[347003500,1735462239798,-500.0,0.00012799,2]
[347003502,1735462239807,-2300.79,0.00012799,2]
[347003504,1735462239816,-161.82548857,0.00012799,2]
[347003507,1735462239841,-338.17451143,0.00012799,2]
[347003510,1735462239850,-624.79,0.00012799,2]
[347003511,1735462239859,-2110.17363711,0.00012799,2]
[347003514,1735462239871,-753.69950238,0.00012799,2]
[347003517,1735462239895,-1506.72686051,0.00012799,2]
[347003519,1735462239904,-500.0,0.00012799,2]
[347003521,1735462239913,-2553.27,0.00012799,2]
[347003523,1735462239922,-512.92,0.00012799,2]
[347003525,1735462239931,-299.99348165,0.00012799,2]
[347003531,1735462239982,-200.00651835,0.00012799,2]
[347003533,1735462239992,-500.0,0.00012799,2]
[347003535,1735462240001,-500.0,0.00012799,2]
[347003538,1735462240011,-500.0,0.00012799,2]
[347003540,1735462240021,-500.0,0.00012799,2]
[347003542,1735462240030,-755.61310536,0.00012799,2]
[347003544,1735462240043,-361.32667984,0.00012799,2]
[347003800,1735462242525,-5026.4502148,0.00012799,2]
[347003803,1735462242535,-500.0,0.00012799,2]
[347003804,1735462242544,-269.67049727,0.00012799,2]
[347003807,1735462242555,-500.0,0.00012799,2]
[347003809,1735462242564,-500.0,0.00012799,2]
[347003811,1735462242574,-5795.25,0.00012799,2]
[347003812,1735462242583,-656.3,0.00012799,2]
[347003815,1735462242592,-500.0,0.00012799,2]
[347003816,1735462242601,-500.0,0.00012799,2]
[347003819,1735462242611,-500.0,0.00012799,2]
[347003821,1735462242621,-500.0,0.00012799,2]
[347003822,1735462242631,-1951.41,0.00012799,2]
[347003824,1735462242640,-500.0,0.00012799,2]
[347003826,1735462242650,-500.0,0.00012799,2]
[347003829,1735462242659,-500.0,0.00012799,2]
[347003830,1735462242668,-500.0,0.00012799,2]
[347003832,1735462242677,-923.89,0.00012799,2]
[347003834,1735462242687,-2306.02928793,0.00012799,2]
[347003838,1735462242710,-1552.56468144,0.00012799,2]
[347004108,1735462245686,-1135.3,0.00012798,2]
[347004109,1735462245696,-5759.53603063,0.00012799,2]
[347004110,1735462245705,-500.0,0.00012799,2]
[347004111,1735462245715,-500.0,0.00012799,2]
[347004112,1735462245723,-500.0,0.00012799,2]
[347004113,1735462245733,-4571.34,0.00012799,2]
[347004114,1735462245742,-500.0,0.00012799,2]
[347004115,1735462245751,-500.0,0.00012799,2]
[347004116,1735462245761,-500.0,0.00012799,2]
[347004117,1735462245771,-500.0,0.00012799,2]
[347004118,1735462245781,-500.0,0.00012799,2]
[347004119,1735462245790,-500.0,0.00012799,2]
[347004120,1735462245800,-500.0,0.00012799,2]
[347004121,1735462245810,-500.0,0.00012799,2]
[347004122,1735462245820,-1067.85,0.00012799,2]
[347004123,1735462245829,-500.0,0.00012799,2]
[347004124,1735462245839,-500.0,0.00012799,2]
[347004125,1735462245848,-500.0,0.00012799,2]
[347004126,1735462245857,-519.41,0.00012799,2]
[347004127,1735462245867,-500.0,0.00012799,2]
[347004128,1735462245876,-317.86920054,0.00012799,2]
[347004129,1735462245886,-500.0,0.00012799,2]
[347004130,1735462245896,-500.0,0.00012799,2]
[347004131,1735462245905,-505.11575725,0.00012799,2]
[347004132,1735462245915,-535.89,0.00012799,2]
[347004133,1735462245924,-500.0,0.00012799,2]
[347004134,1735462245934,-1243.25,0.00012799,2]
[347004135,1735462245944,-500.58,0.00012799,2]
[347004136,1735462245953,-500.0,0.00012799,2]
[347004137,1735462245962,-2233.57569342,0.00012799,2]
[347004959,1735462430326,163.09,9.449e-05,2]
[347004960,1735462434624,350.21987921,0.0001,2]
[347004961,1735462493277,-190.51674747,0.000119,2]
[347004962,1735462493302,-165.37,0.00011908,2]
[347004963,1735462527809,421.59,9.883e-05,2]
[347004964,1735462596833,-942.68,0.00012803,7]
[347004965,1735462605917,1000.0,0.00011797,2]
[347004966,1735462612307,232.76,0.00010137,2]
[347004967,1735462661782,500.0,0.00011797,2]
[347004968,1735462912914,1932.69,0.00011797,2]
[347004969,1735462922009,557.07325253,0.00011796,2]
[347004970,1735462948435,-632.68,0.00011792,2]
[347004971,1735462948463,-1442.92674747,0.00011796,2]
[347004986,1735463137959,250.0,0.00011788,2]
[347005710,1735463321972,754.39325253,0.000112,2]
[347005719,1735463431760,-1209.10423545,0.000112,2]
[347005720,1735463432023,-598.51129821,0.000112,2]
[347005721,1735463432049,-1727.4936,0.000112,2]
[347005722,1735463432060,-2263.94972822,0.000112,2]
[347005723,1735463432077,-831.532,0.000112,2]
[347005724,1735463432088,-3046.5119227,0.000112,2]
[347006049,1735463439760,-312.22798271,0.000112,2]
[347006050,1735463439817,-6559.59456981,0.000112,2]
[347006051,1735463439874,-658.7300751,0.000112,2]
[347006052,1735463439984,-5579.57341238,0.000112,2]
[347006057,1735463442921,-416.0,0.000112,2]
[347006058,1735463442937,-50644.69541314,0.000112,2]
[347006059,1735463442946,-1158.15944762,0.000118,2]
[347006060,1735463442956,-224.93,0.00012,2]
[347006061,1735463442965,-450.0,0.00012,2]
[347006062,1735463442975,-421.59,0.00012147,2]
[347006063,1735463442984,-166.71,0.00012159,2]
[347006064,1735463442994,-373.79,0.00012343,2]
[347006065,1735463443003,-304.701,0.0001235,2]
[347006066,1735463443013,-379.04,0.00012603,2]
[347006067,1735463443023,-1578.24138,0.0001267,2]
[347006068,1735463443032,-938.0,0.00012671,2]
[347006069,1735463443042,-150.0,0.00012692,2]
[347006070,1735463443052,-1000.0,0.00012699,2]
[347006071,1735463443063,-150.0,0.00012716,2]
[347006072,1735463443072,-150.0,0.00012732,2]
[347006073,1735463443082,-150.0,0.00012735,2]
[347006074,1735463443091,-150.0,0.00012749,2]
[347006075,1735463443101,-150.0,0.00012751,2]
[347006076,1735463443111,-150.0,0.00012753,2]
[347006077,1735463443120,-150.0,0.00012765,2]
[347006078,1735463443130,-150.0,0.00012768,2]
[347006079,1735463443139,-150.0,0.00012776,2]
[347006080,1735463443149,-150.0,0.0001278,2]
[347006081,1735463443158,-919.646,0.00012781,2]
[347006082,1735463443167,-150.0,0.00012789,2]
[347006083,1735463443175,-150.0,0.00012792,2]
[347006084,1735463443184,-500.0,0.00012797,2]
[347006085,1735463443193,-1158.08,0.00012797,2]
[347006086,1735463443203,-561.35,0.00012797,2]
[347006087,1735463443212,-2942.03222004,0.00012797,2]
[347006088,1735463443226,-3799.84777996,0.00012797,2]
[347006089,1735463443235,-2646.79,0.00012797,2]
[347006090,1735463443245,-6330.65,0.00012797,2]
[347006091,1735463443254,-1996.61,0.00012797,2]
[347006092,1735463443264,-4466.08,0.00012797,2]
[347006093,1735463443273,-516.23,0.00012797,2]
[347006094,1735463443282,-1529.9,0.00012797,2]
[347006095,1735463443291,-500.0,0.00012797,2]
[347006096,1735463443300,-847.87,0.00012797,2]
[347006097,1735463443309,-1870.73,0.00012797,2]
[347006098,1735463443319,-2913.58,0.00012797,2]
[347006099,1735463443330,-607.64,0.00012797,2]
[347006100,1735463443339,-589.68,0.00012797,2]
[347006101,1735463443350,-1224.69,0.00012797,2]
[347006102,1735463443359,-35159.70222004,0.00012798,2]
[347006103,1735463443370,-61529.0345392,0.00012798,2]
[347006104,1735463443392,-408.3563731,0.00012798,2]
[347006105,1735463443403,-2285.82171714,0.00012798,2]
[347006129,1735463445873,-846.096882,0.00011144,2]
[347006130,1735463445883,-168.8,0.0001212,2]
[347006131,1735463445892,-150.0,0.00012679,2]
[347006132,1735463445902,-150.0,0.00012701,2]
[347006133,1735463445911,-150.0,0.00012742,2]
[347006134,1735463445921,-150.0,0.00012744,2]
[347006135,1735463445931,-150.0,0.00012774,2]
[347006136,1735463445940,-150.0,0.00012791,2]
[347006137,1735463445950,-7719.71468454,0.00012798,2]
[347006138,1735463446018,-982.1194004,0.00012798,2]
[347006680,1735463528596,412.5,9.862e-05,2]
[347006681,1735463734278,150.0,0.00023,120]
[347006682,1735463746708,150.122918,0.00023,120]
[347006683,1735463747468,150.122918,0.00023,120]
[347006684,1735463747952,150.122918,0.00023,120]
[347006685,1735463748385,150.122918,0.00023,120]
[347006686,1735463748777,150.122918,0.00023,120]
[347006687,1735463749134,150.122918,0.00023,120]
[347006688,1735463749512,150.122918,0.00023,120]
[347006689,1735463749927,150.122918,0.00023,120]
[347006690,1735463750305,150.122918,0.00023,120]
[347006691,1735463750690,150.122918,0.00023,120]
[347006692,1735463751088,150.122918,0.00023,120]
[347006693,1735463751461,150.122918,0.00023,120]
[347006694,1735463751841,150.122918,0.00023,120]
[347006695,1735463752231,150.122918,0.00023,120]
[347006696,1735463752622,150.122918,0.00023,120]
[347006697,1735463753012,150.122918,0.00023,120]
[347006698,1735463753395,150.122918,0.00023,120]
[347006699,1735463753775,150.122918,0.00023,120]
[347006700,1735463754216,150.122918,0.00023,120]
[347006701,1735463754718,150.122918,0.00023,120]
[347006702,1735463820963,176.122918,0.00023,120]
[347006704,1735463889903,500.0,0.00024686,120]
[347006705,1735463890409,150.122918,0.00023,120]
[347006706,1735463891452,150.122918,0.00023,120]
[347006707,1735463891729,150.122918,0.00023,120]
[347006708,1735463892239,150.122918,0.00023,120]
[347006709,1735463892679,150.122918,0.00023,120]
[347006710,1735463893133,150.122918,0.00023,120]
[347006711,1735463893583,150.122918,0.00023,120]
[347006712,1735463894043,150.122918,0.00023,120]
[347006713,1735463894502,150.122918,0.00023,120]
[347006714,1735463894989,150.122918,0.00023,120]
[347006715,1735463895471,150.122918,0.00023,120]
[347006716,1735463895969,150.122918,0.00023,120]
[347006717,1735463896463,150.122918,0.00023,120]
[347006718,1735463896922,150.122918,0.00023,120]
[347006719,1735463897367,150.122918,0.00023,120]
[347006720,1735463897812,150.122918,0.00023,120]
[347006721,1735463898268,150.122918,0.00023,120]
[347006722,1735463898727,150.122918,0.00023,120]
[347006723,1735463899164,150.122918,0.00023,120]
[347006724,1735463899624,150.122918,0.00023,120]
[347006725,1735463900134,150.122918,0.00023,120]
[347006726,1735463900585,150.122918,0.00023,120]
[347006727,1735463901052,150.122918,0.00023,120]
[347006728,1735463901810,150.122918,0.00023,120]
[347006729,1735463901971,150.122918,0.00023,120]
[347006730,1735463902549,150.122918,0.00023,120]
[347006731,1735463902941,150.122918,0.00023,120]
[347006732,1735463903355,150.122918,0.00023,120]
[347006733,1735463903809,150.122918,0.00023,120]
[347006734,1735463904251,150.122918,0.00023,120]
[347006735,1735463904683,150.122918,0.00023,120]
[347006736,1735463905154,150.122918,0.00023,120]
[347006737,1735463905623,150.122918,0.00023,120]
[347006738,1735463906092,150.122918,0.00023,120]
[347006739,1735463906548,150.122918,0.00023,120]
[347006740,1735463907023,150.122918,0.00023,120]
[347006741,1735463907512,150.122918,0.00023,120]
[347006742,1735463907991,150.122918,0.00023,120]
[347006743,1735463908523,150.122918,0.00023,120]
[347006744,1735463909165,150.122918,0.00023,120]
[347006745,1735463909398,150.122918,0.00023,120]
[347006746,1735463909886,150.122918,0.00023,120]
[347006747,1735463910304,150.122918,0.00023,120]
[347006748,1735463910742,150.122918,0.00023,120]
[347006754,1735464233660,2000.0,0.00023,120]
[347006767,1735464362949,863.08675507,9.8e-05,2]
[347006797,1735464632267,-381.0334949,0.00011353,2]
[347006798,1735464632277,-1000.0,0.00011451,2]
[347006799,1735464632286,-1097.77,0.00011453,2]
[347006800,1735464632296,-1500.0,0.0001148,2]
[347006801,1735464632305,-582.17,0.00011484,2]
[347006802,1735464632315,-2000.0,0.000115,2]
[347006803,1735464632324,-390.91,0.0001152,2]
[347006804,1735464632335,-5997.94,0.00011526,2]
[347006805,1735464632344,-467.2,0.0001153,2]
[347006806,1735464632353,-23900.0,0.00011532,2]
[347006807,1735464632363,-934.16,0.00011556,2]
[347006808,1735464632372,-250.0,0.00011612,2]
[347006809,1735464632381,-192.09,0.00011625,2]
[347006810,1735464632390,-500.0,0.00011651,2]
[347006811,1735464632400,-250.0,0.00011666,2]
[347006812,1735464632409,-250.0,0.00011792,2]
[347006813,1735464632418,-200.0,0.00012,4]
[347006814,1735464632428,-500.0,0.000121,4]
[347006815,1735464632437,-700.0,0.000122,4]
[347006816,1735464632446,-1000.0,0.000123,4]
[347006817,1735464632455,-1000.0,0.00012349,2]
[347006818,1735464632465,-292.259,0.0001235,2]
[347006819,1735464632474,-771.1,0.00012357,2]
[347006821,1735464632483,-585.83,0.00012357,2]
[347006823,1735464632492,-1300.0,0.000124,4]
[347006825,1735464632501,-150.0,0.00012499,2]
[347006827,1735464632510,-200.0,0.000125,4]
[347006829,1735464632519,-150.0,0.00012508,2]
[347006831,1735464632528,-150.0,0.00012538,2]
[347006833,1735464632537,-150.0,0.0001254,2]
[347006835,1735464632546,-150.0,0.00012541,2]
[347006837,1735464632555,-150.0,0.00012548,2]
[347006839,1735464632564,-150.0,0.0001255,2]
[347006841,1735464632574,-150.0,0.00012555,2]
[347006843,1735464632583,-1500.0,0.00012561,2]
[347006845,1735464632593,-150.0,0.00012572,2]
[347006847,1735464632603,-150.0,0.0001258,2]
[347006849,1735464632612,-150.0,0.00012581,2]
[347006851,1735464632621,-150.0,0.00012592,2]
[347006853,1735464632630,-150.0,0.00012597,2]
[347006855,1735464632640,-200.0,0.000126,4]
[347006857,1735464632649,-150.0,0.00012609,2]
[347006859,1735464632658,-150.0,0.00012613,2]
[347006861,1735464632667,-150.0,0.00012617,2]
[347006863,1735464632676,-150.0,0.0001263,2]
[347006864,1735464632685,-150.0,0.00012641,2]
[347006866,1735464632694,-150.0,0.00012644,2]
[347006868,1735464632703,-150.0,0.00012659,2]
[347006870,1735464632712,-2604.32185,0.0001267,2]
[347006872,1735464632721,-150.0,0.00012678,2]
[347006874,1735464632731,-150.0,0.00012688,2]
[347006876,1735464632740,-150.0,0.00012691,2]
[347006878,1735464632750,-1671.45,0.00012697,2]
[347006880,1735464632759,-1217.3464,0.00012697,2]
[347006883,1735464632769,-150.0,0.00012697,2]
[347006884,1735464632778,-168.2925184,0.000127,2]